fUSD/lending_fUSD_20251108
["ID","MTS","AMOUNT","RATE_DAILY","PERIOD"]
[393384926,1762564238209,-1033.2624,0.00017,2]
[393384927,1762564238222,-481.62479556,0.00017,2]
[393384965,1762564240078,-527.17789698,0.00017,2]
[393384966,1762564240242,-10088.13599999,0.00017,2]
[393384967,1762564240254,-13896.43629089,0.00017,2]
[393384968,1762564240265,-36336.51291817,0.00017,2]
[393384969,1762564240476,-34992.04880647,0.00017,2]
[393384970,1762564240489,-3048.75711487,0.00017,2]
[393384971,1762564240890,-1.7e-07,0.00017,2]
[393384972,1762564240902,-254501.93791719,0.00017,2]
[393384973,1762564240913,-250.0,0.00017,2]
[393384974,1762564240923,-383.50769,0.00017,2]
[393384975,1762564240933,-383.50769,0.00017,2]
[393384976,1762564240943,-383.50769,0.00017,2]
[393384977,1762564240952,-21973.0423599,0.00017001,2]
[393384978,1762564240962,-2143.8630524,0.0001701,2]
[393384979,1762564240971,-1159.2753099,0.00017011,2]
[393384980,1762564240981,-1408.1722151,0.00017011,2]
[393384981,1762564240991,-4542.57676151,0.00017063,2]
[393384982,1762564241000,-1500.0,0.000173,6]
[393384983,1762564241011,-3100.0,0.000174,6]
[393384984,1762564241020,-163.36,0.00017463,2]
[393384985,1762564241030,-503.77601158,0.00017483,2]
[393384986,1762564241041,-150.0,0.00017494,2]
[393384987,1762564241051,-4600.0,0.000175,6]
[393384988,1762564241060,-6200.0,0.000176,6]
[393384989,1762564241070,-670.22420623,0.00017607,2]
[393384990,1762564241079,-166.66,0.00017611,2]
[393384991,1762564241089,-170.08,0.00017656,2]
[393384992,1762564241098,-166.66,0.0001767,2]
[393384993,1762564241107,-1551.65813306,0.00017686,2]
[393384994,1762564241117,-430.4074,0.000177,2]
[393384995,1762564241127,-1000.0,0.000177,2]
[393384996,1762564241136,-5586.35465537,0.000177,2]
[393384997,1762564241147,-7800.0,0.000177,6]
[393384998,1762564241157,-152.55160196,0.000177,2]
[393384999,1762564241166,-5586.35465537,0.00017722,2]
[393385000,1762564241176,-2676.07774053,0.00017744,2]
[393385001,1762564241186,-5586.35465537,0.00017744,2]
[393385002,1762564241196,-5586.35465537,0.00017767,2]
[393385003,1762564241206,-151.0,0.0001777,2]
[393385004,1762564241215,-503.03575028,0.00017773,2]
[393385005,1762564241224,-500.0,0.00017773,2]
[393385006,1762564241234,-168.23721633,0.00017773,2]
[393385007,1762564241243,-500.0,0.00017773,2]
[393385008,1762564241252,-605.78717603,0.00017773,2]
[393385009,1762564241261,-500.0,0.00017773,2]
[393385010,1762564241270,-500.0,0.00017773,2]
[393385011,1762564241280,-504.75986535,0.00017773,2]
[393385012,1762564241289,-500.0,0.00017773,2]
[393385013,1762564241298,-500.0,0.00017773,2]
[393385014,1762564241308,-5586.35465537,0.00017789,2]
[393385015,1762564241318,-151.0,0.00017797,2]
[393385016,1762564241327,-500.0,0.00017799,2]
[393385017,1762564241337,-500.0,0.00017799,2]
[393385018,1762564241347,-500.0,0.00017799,2]
[393385019,1762564241358,-184.33769493,0.00017799,2]
[393385020,1762564241368,-500.0,0.00017799,2]
[393385021,1762564241378,-500.0,0.00017799,2]
[393385022,1762564241387,-500.0,0.00017799,2]
[393385023,1762564241399,-500.0,0.00017799,2]
[393385024,1762564241409,-500.0,0.00017799,2]
[393385025,1762564241418,-500.0,0.00017799,2]
[393385026,1762564241428,-500.0,0.00017799,2]
[393385027,1762564241438,-500.0,0.00017799,2]
[393385028,1762564241447,-500.0,0.00017799,2]
[393385029,1762564241457,-500.0,0.00017799,2]
[393385030,1762564241466,-500.0,0.00017799,2]
[393385031,1762564241475,-500.0,0.00017799,2]
[393385032,1762564241485,-500.0,0.00017799,2]
[393385033,1762564241494,-500.0,0.00017799,2]
[393385034,1762564241504,-500.0,0.00017799,2]
[393385035,1762564241513,-500.0,0.00017799,2]
[393385036,1762564241522,-500.0,0.00017799,2]
[393385037,1762564241533,-500.0,0.00017799,2]
[393385038,1762564241542,-500.0,0.00017799,2]
[393385039,1762564241552,-500.0,0.00017799,2]
[393385040,1762564241562,-500.0,0.00017799,2]
[393385041,1762564241572,-500.0,0.00017799,2]
[393385042,1762564241582,-500.0,0.00017799,2]
[393385043,1762564241591,-500.0,0.00017799,2]
[393385044,1762564241601,-500.0,0.00017799,2]
[393385045,1762564241610,-500.0,0.00017799,2]
[393385046,1762564241620,-500.0,0.00017799,2]
[393385047,1762564241630,-500.0,0.00017799,2]
[393385048,1762564241641,-500.0,0.00017799,2]
[393385049,1762564241651,-500.0,0.00017799,2]
[393385050,1762564241661,-619.51613083,0.00017799,2]
[393385051,1762564241670,-161.61998968,0.00017799,2]
[393385052,1762564241680,-385.48485231,0.00017799,2]
[393385053,1762564241690,-270.04138186,0.00017799,2]
[393385054,1762564241700,-168.55649268,0.00017799,2]
[393385055,1762564241711,-214.35417635,0.00017799,2]
[393385056,1762564241721,-500.0,0.00017799,2]
[393385057,1762564241731,-215.12877233,0.00017799,2]
[393385058,1762564241741,-227.77829912,0.00017799,2]
[393385059,1762564241752,-217.20501353,0.00017799,2]
[393385060,1762564241762,-500.0,0.00017799,2]
[393385061,1762564241772,-500.0,0.00017799,2]
[393385062,1762564241787,-500.0,0.00017799,2]
[393385063,1762564241797,-272.22170088,0.00017799,2]
[393385064,1762564241807,-515.63484931,0.00017799,2]
[393385065,1762564241817,-388.99911349,0.00017799,2]
[393385066,1762564241827,-500.0,0.00017799,2]
[393385067,1762564241837,-500.0,0.00017799,2]
[393385068,1762564241848,-393.07,0.00017799,2]
[393385069,1762564241858,-500.0,0.00017799,2]
[393385070,1762564241869,-589.41461623,0.00017799,2]
[393385071,1762564241879,-500.0,0.00017799,2]
[393385072,1762564241891,-500.0,0.00017799,2]
[393385073,1762564241901,-500.0,0.00017799,2]
[393385074,1762564241910,-500.0,0.00017799,2]
[393385075,1762564241922,-16910.9735359,0.000178,2]
[393385076,1762564241931,-404225.27,0.000178,2]
[393385077,1762564241942,-163.69849733,0.000178,2]
[393385078,1762564241952,-6350.77818032,0.000178,2]
[393385079,1762564241961,-1500.0,0.000178,6]
[393385080,1762564241971,-6350.77818025,0.00017811,2]
[393385081,1762564241981,-5586.35465537,0.00017811,2]
[393385082,1762564241991,-6350.77818025,0.00017822,2]
[393385083,1762564242001,-6350.77818025,0.00017833,2]
[393385084,1762564242011,-5586.35465537,0.00017833,2]
[393385085,1762564242020,-6350.77818025,0.00017844,2]
[393385086,1762564242030,-6350.77818025,0.00017856,2]
[393385087,1762564242040,-5586.35465537,0.00017856,2]
[393385088,1762564242222,-6350.77818025,0.00017867,2]
[393385089,1762564242234,-151.0,0.00017875,2]
[393385090,1762564242244,-6350.77818025,0.00017878,2]
[393385091,1762564242254,-5586.35465537,0.00017878,2]
[393385092,1762564242264,-6350.77818025,0.00017889,2]
[393385093,1762564242274,-165.22456244,0.000179,2]
[393385094,1762564242283,-1500.0,0.000179,6]
[393385095,1762564242293,-6350.77818025,0.000179,2]
[393385096,1762564242303,-5586.35465537,0.000179,2]
[393385097,1762564242313,-157.17304241,0.000179,3]
[393385098,1762564242322,-990.84690428,0.000179,2]
[393385099,1762564242332,-152.55160194,0.0001794,2]
[393385100,1762564242341,-162.45437942,0.00017969,2]
[393385101,1762564242350,-500.71108766,0.00017973,2]
[393385102,1762564242360,-500.0,0.00017973,2]
[393385103,1762564242369,-500.0,0.00017973,2]
[393385104,1762564242378,-500.28450458,0.00017973,2]
[393385105,1762564242387,-500.0,0.00017973,2]
[393385106,1762564242398,-161.17429234,0.00017973,2]
[393385107,1762564242408,-155.22989953,0.00017973,2]
[393385108,1762564242418,-500.34822502,0.00017973,2]
[393385109,1762564242428,-500.0,0.00017973,2]
[393385110,1762564242438,-500.13599134,0.00017973,2]
[393385111,1762564242447,-500.0,0.00017973,2]
[393385112,1762564242456,-500.0,0.00017973,2]
[393385113,1762564242466,-500.0,0.00017973,2]
[393385114,1762564242475,-500.0,0.00017973,2]
[393385115,1762564242485,-500.0,0.00017973,2]
[393385116,1762564242496,-384.58055812,0.00017973,2]
[393385117,1762564242506,-500.0,0.00017973,2]
[393385118,1762564242516,-500.0,0.00017973,2]
[393385119,1762564242525,-280.33323234,0.00017973,2]
[393385120,1762564242535,-500.0,0.00017973,2]
[393385121,1762564242544,-500.0,0.00017973,2]
[393385122,1762564242554,-500.0,0.00017973,2]
[393385123,1762564242563,-500.0,0.00017973,2]
[393385124,1762564242573,-500.0,0.00017973,2]
[393385125,1762564242583,-165.77547705,0.00017973,2]
[393385126,1762564242592,-500.0,0.00017973,2]
[393385127,1762564242602,-151.947546,0.00017973,2]
[393385128,1762564242611,-151.97018,0.00017973,2]
[393385129,1762564242621,-151.0,0.00017973,2]
[393385130,1762564242630,-152.753685,0.00017973,2]
[393385131,1762564242640,-235.808052,0.00017973,2]
[393385132,1762564242651,-151.0,0.00017973,2]
[393385133,1762564242660,-151.0,0.00017973,2]
[393385134,1762564242670,-151.0,0.00017973,2]
[393385135,1762564242680,-151.0,0.00017973,2]
[393385136,1762564242690,-232.301312,0.00017973,2]
[393385137,1762564242699,-1109.75706,0.00017973,2]
[393385138,1762564242709,-232.301312,0.00017973,2]
[393385139,1762564242718,-151.0,0.00017973,2]
[393385140,1762564242728,-151.911973,0.00017973,2]
[393385141,1762564242737,-151.0,0.00017973,2]
[393385142,1762564242746,-232.301312,0.00017973,2]
[393385143,1762564242756,-1109.75706,0.00017973,2]
[393385144,1762564242765,-151.0,0.00017973,2]
[393385145,1762564242775,-151.0,0.00017973,2]
[393385146,1762564242785,-232.301312,0.00017973,2]
[393385147,1762564242796,-1109.75706,0.00017973,2]
[393385148,1762564242805,-151.0,0.00017973,2]
[393385149,1762564242814,-1109.75706,0.00017973,2]
[393385150,1762564242824,-151.0,0.00017973,2]
[393385151,1762564242834,-151.0,0.00017973,2]
[393385152,1762564242843,-151.0,0.00017973,2]
[393385153,1762564242853,-153.569576,0.00017973,2]
[393385154,1762564242863,-151.0,0.00017973,2]
[393385155,1762564242873,-2734.030024,0.00017973,2]
[393385156,1762564242883,-320.332436,0.00017973,2]
[393385157,1762564242893,-151.0,0.00017973,2]
[393385158,1762564242903,-2734.030024,0.00017973,2]
[393385160,1762564242912,-151.0,0.00017973,2]
[393385162,1762564242921,-320.332436,0.00017973,2]
[393385164,1762564242930,-151.0,0.00017973,2]
[393385165,1762564242940,-2734.030024,0.00017973,2]
[393385168,1762564242951,-320.332436,0.00017973,2]
[393385170,1762564242961,-151.0,0.00017973,2]
[393385172,1762564242971,-2734.030024,0.00017973,2]
[393385174,1762564242981,-320.332436,0.00017973,2]
[393385176,1762564242990,-623.096659,0.00017973,2]
[393385177,1762564243001,-623.096659,0.00017973,2]
[393385179,1762564243011,-623.096659,0.00017973,2]
[393385181,1762564243021,-623.096659,0.00017973,2]
[393385184,1762564243030,-151.0,0.00017973,2]
[393385186,1762564243040,-151.0,0.00017973,2]
[393385187,1762564243049,-151.0,0.00017973,2]
[393385188,1762564243059,-151.0,0.00017973,2]
[393385189,1762564243068,-151.0,0.00017973,2]
[393385190,1762564243078,-151.0,0.00017973,2]
[393385191,1762564243087,-151.0,0.00017973,2]
[393385192,1762564243097,-537.026369,0.00017973,2]
[393385193,1762564243106,-537.026369,0.00017973,2]
[393385195,1762564243116,-151.0,0.00017973,2]
[393385197,1762564243125,-537.026369,0.00017973,2]
[393385199,1762564243135,-151.0,0.00017973,2]
[393385201,1762564243147,-537.026369,0.00017973,2]
[393385202,1762564243157,-880.078763,0.00017973,2]
[393385203,1762564243167,-151.0,0.00017973,2]
[393385204,1762564243176,-880.078763,0.00017973,2]
[393385205,1762564243186,-880.078763,0.00017973,2]
[393385206,1762564243195,-151.0,0.00017973,2]
[393385207,1762564243204,-206.795806,0.00017973,2]
[393385208,1762564243214,-151.0,0.00017973,2]
[393385209,1762564243223,-880.078763,0.00017973,2]
[393385210,1762564243233,-151.0,0.00017973,2]
[393385211,1762564243242,-206.795806,0.00017973,2]
[393385212,1762564243251,-365.186825,0.00017973,2]
[393385213,1762564243261,-151.0,0.00017973,2]
[393385214,1762564243271,-849.785186,0.00017973,2]
[393385215,1762564243281,-206.795806,0.00017973,2]
[393385216,1762564243290,-365.186825,0.00017973,2]
[393385217,1762564243299,-849.785186,0.00017973,2]
[393385218,1762564243309,-206.795806,0.00017973,2]
[393385219,1762564243318,-365.186825,0.00017973,2]
[393385220,1762564243328,-151.0,0.00017973,2]
[393385221,1762564243337,-849.785186,0.00017973,2]
[393385222,1762564243346,-365.186825,0.00017973,2]
[393385223,1762564243356,-151.0,0.00017973,2]
[393385224,1762564243365,-849.785186,0.00017973,2]
[393385225,1762564243375,-151.0,0.00017973,2]
[393385226,1762564243384,-192.97071,0.00017973,2]
[393385227,1762564243395,-151.0,0.00017973,2]
[393385228,1762564243406,-192.97071,0.00017973,2]
[393385229,1762564243416,-192.97071,0.00017973,2]
[393385230,1762564243426,-151.0,0.00017973,2]
[393385231,1762564243435,-192.97071,0.00017973,2]
[393385232,1762564243446,-221.29882,0.00017973,2]
[393385233,1762564243456,-221.29882,0.00017973,2]
[393385234,1762564243466,-221.29882,0.00017973,2]
[393385235,1762564243475,-221.29882,0.00017973,2]
[393385236,1762564243484,-151.0,0.00017973,2]
[393385237,1762564243493,-151.0,0.00017973,2]
[393385238,1762564243503,-151.0,0.00017973,2]
[393385239,1762564243512,-151.0,0.00017973,2]
[393385240,1762564243521,-151.0,0.00017973,2]
[393385241,1762564243531,-151.0,0.00017973,2]
[393385242,1762564243540,-3643.440748,0.00017973,2]
[393385243,1762564243549,-151.0,0.00017973,2]
[393385244,1762564243559,-750.217543,0.00017973,2]
[393385245,1762564243567,-3643.440748,0.00017973,2]
[393385246,1762564243577,-151.0,0.00017973,2]
[393385247,1762564243586,-750.217543,0.00017973,2]
[393385248,1762564243595,-151.0,0.00017973,2]
[393385249,1762564243604,-3643.440748,0.00017973,2]
[393385251,1762564243614,-151.0,0.00017973,2]
[393385253,1762564243623,-750.217543,0.00017973,2]
[393385255,1762564243632,-151.0,0.00017973,2]
[393385256,1762564243643,-3643.440748,0.00017973,2]
[393385257,1762564243652,-750.217543,0.00017973,2]
[393385258,1762564243662,-151.0,0.00017973,2]
[393385259,1762564243671,-151.0,0.00017973,2]
[393385260,1762564243681,-151.0,0.00017997,2]
[393385261,1762564243690,-300.0,0.00017999,2]
[393385262,1762564243699,-300.0,0.00017999,2]
[393385263,1762564243709,-468.79826231,0.00017999,2]
[393385264,1762564243719,-492.15111687,0.00017999,2]
[393385265,1762564243728,-500.0,0.00017999,2]
[393385266,1762564243738,-607.35397195,0.00017999,2]
[393385267,1762564243748,-500.0,0.00017999,2]
[393385268,1762564243758,-762.0,0.00018,2]
[393385269,1762564243768,-1684.64635048,0.00018,2]
[393385270,1762564243778,-4793846.3190416,0.00018,2]
[393385271,1762564243823,-31.45217522,0.00018,2]
[393385272,1762564243835,-11206.0,0.00018,2]
[393385273,1762564244114,-151.0,0.00017973,2]
[393385274,1762564244124,-99.70086003,0.00017973,2]
[393385275,1762564246405,-51.29913997,0.00017973,2]
[393385276,1762564246415,-151.0,0.00017973,2]
[393385277,1762564246425,-151.0,0.00017973,2]
[393385278,1762564246435,-151.0,0.00017973,2]
[393385279,1762564246445,-151.0,0.00017973,2]
[393385280,1762564246456,-151.0,0.00017973,2]
[393385281,1762564246466,-8067.86674552,0.00018,2]
[393385282,1762564246514,-3753.5289776,0.00018,2]
[393385284,1762564815851,192.63,8.695e-05,2]
[393385285,1762564816069,192.63,0.00012871,2]
[393385286,1762564887390,1525.55,0.00015,2]
[393385292,1762565380036,-200.0,0.000173,6]
[393385293,1762565389642,-500.0,0.000174,6]
[393385294,1762565397467,-700.0,0.000175,6]
[393385295,1762565404406,166.98762974,0.00039052,120]
[393385296,1762565404476,-507.0,0.000176,6]
[393385297,1762565407275,200.56787418,0.00039052,120]
[393385300,1762565409724,223.66158598,0.00039052,120]
[393385301,1762565412870,242.80434239,0.00039052,120]
[393385302,1762565415680,165.40207242,0.00039052,120]
[393385304,1762565416557,229.2759427,0.00039052,120]
[393385305,1762565423604,231.96194798,0.00039052,120]
[393385306,1762565425528,178.12308858,0.00039052,120]
[393385307,1762565429196,206.81000351,0.00039052,120]
[393385318,1762565432334,-413.8620027,0.00016438,2]
[393385320,1762565432437,-692.7479973,0.00016438,2]
[393385321,1762565432448,-250.0,0.00016947,2]
[393385322,1762565432458,-1000.0,0.00017,2]
[393385323,1762565432468,-200.0,0.00017025,2]
[393385324,1762565432478,-192.63,0.00017048,2]
[393385325,1762565432488,-176.27,0.00017281,2]
[393385326,1762565432498,-517.95041375,0.00017399,2]
[393385332,1762565436400,170.87106268,0.00039052,120]
[393385336,1762565438316,-450.58499,0.00017399,2]
[393385337,1762565438431,-231.46459625,0.00017399,2]
[393385338,1762565438445,-300.0,0.00017399,2]
[393385339,1762565438460,-150.0,0.000174,2]
[393385340,1762565438474,-150.0,0.000174,2]
[393385341,1762565438489,-150.0,0.000174,2]
[393385342,1762565438504,-150.0,0.000174,2]
[393385343,1762565438519,-150.0,0.000174,2]
[393385344,1762565438534,-1096.54,0.000174,2]
[393385346,1762565438546,-150.0,0.000174,2]
[393385348,1762565438560,-549.24,0.000174,2]
[393385350,1762565438573,-150.0,0.000174,2]
[393385352,1762565438584,-150.0,0.000174,2]
[393385354,1762565438598,-138.5498017,0.000174,2]
[393385355,1762565438616,-11.4501983,0.000174,2]
[393385356,1762565438630,-150.0,0.000174,2]
[393385357,1762565438644,-2425.22,0.000174,2]
[393385358,1762565438658,-150.0,0.000174,2]
[393385359,1762565438673,-260.88,0.000174,2]
[393385360,1762565438688,-1205.69,0.000174,2]
[393385361,1762565438703,-176.94,0.00017478,2]
[393385362,1762565438717,-245.81,0.00017478,2]
[393385363,1762565438733,-415.8,0.00017478,2]
[393385364,1762565438746,-150.4,0.000175,2]
[393385365,1762565438761,-150.56,0.000175,2]
[393385366,1762565438774,-1045.59966397,0.000175,2]
[393385367,1762565440394,-181.49033603,0.000175,2]
[393385368,1762565440407,-150.59,0.000175,2]
[393385369,1762565440420,-151.04,0.000175,2]
[393385370,1762565440438,-151.07,0.000175,2]
[393385371,1762565440451,-221.8861932,0.00017571,2]
[393385372,1762565440462,-894.01797964,0.00017572,2]
[393385373,1762565440474,-174.56549549,0.00017573,2]
[393385374,1762565440487,-1200.0,0.00017599,2]
[393385375,1762565440500,-176.94,0.000176,2]
[393385376,1762565440515,-150.0,0.000176,2]
[393385377,1762565440529,-186.71,0.000176,2]
[393385378,1762565440540,-150.0,0.000176,2]
[393385379,1762565440551,-150.0,0.000176,2]
[393385380,1762565440562,-415.8,0.000176,2]
[393385381,1762565440574,-277.46764716,0.000176,2]
[393385382,1762565440586,-154.99000968,0.000176,2]
[393385383,1762565440599,-291.47959928,0.000176,2]
[393385384,1762565440611,-493.0,0.000176,6]
[393385385,1762565440623,-163.69849732,0.00017604,2]
[393385386,1762565440635,-277.46764707,0.00017633,2]
[393385387,1762565440647,-291.47959919,0.00017633,2]
[393385388,1762565440663,-277.46764707,0.00017667,2]
[393385389,1762565440682,-500.0,0.00017673,2]
[393385390,1762565440696,-500.0,0.00017673,2]
[393385391,1762565440710,-585.02702278,0.00017673,2]
[393385392,1762565440724,-500.98944882,0.00017673,2]
[393385393,1762565440737,-503.53479899,0.00017673,2]
[393385394,1762565440750,-500.0,0.00017673,2]
[393385395,1762565440763,-151.0,0.00017697,2]
[393385396,1762565440781,-500.0,0.00017699,2]
[393385397,1762565440796,-500.0,0.00017699,2]
[393385398,1762565440811,-500.0,0.00017699,2]
[393385399,1762565440825,-500.0,0.00017699,2]
[393385400,1762565440839,-500.0,0.00017699,2]
[393385401,1762565440853,-500.0,0.00017699,2]
[393385402,1762565440867,-500.0,0.00017699,2]
[393385403,1762565440881,-500.0,0.00017699,2]
[393385404,1762565440893,-500.0,0.00017699,2]
[393385405,1762565440906,-500.0,0.00017699,2]
[393385406,1762565440920,-500.0,0.00017699,2]
[393385407,1762565440933,-442.58035428,0.00017699,2]
[393385408,1762565440946,-500.0,0.00017699,2]
[393385409,1762565440960,-500.0,0.00017699,2]
[393385410,1762565440973,-500.0,0.00017699,2]
[393385411,1762565440985,-500.0,0.00017699,2]
[393385412,1762565440997,-500.0,0.00017699,2]
[393385413,1762565441009,-500.0,0.00017699,2]
[393385414,1762565441021,-500.0,0.00017699,2]
[393385415,1762565441033,-500.0,0.00017699,2]
[393385416,1762565441046,-180.12932523,0.00017699,2]
[393385417,1762565441057,-164.88323516,0.00017699,2]
[393385418,1762565441069,-420000.0,0.000177,2]
[393385419,1762565441083,-1200.0,0.000177,6]
[393385420,1762565441095,-277.46764707,0.000177,2]
[393385421,1762565441107,-277.46764707,0.00017733,2]
[393385422,1762565441124,-277.46764707,0.00017767,2]
[393385423,1762565441139,-66561.66962065,0.000178,2]
[393385424,1762565441152,-277.46764707,0.000178,2]
[393385425,1762565441165,-200.0,0.000178,6]
[393385426,1762565441178,-277.46764707,0.00017833,2]
[393385427,1762565441190,-277.46764707,0.00017867,2]
[393385428,1762565441203,-165.22456244,0.000179,2]
[393385429,1762565441217,-415.8,0.000179,2]
[393385430,1762565441229,-415.8,0.000179,2]
[393385431,1762565441242,-213.32,0.000179,2]
[393385432,1762565441255,-415.8,0.000179,2]
[393385433,1762565441267,-200.0,0.000179,6]
[393385434,1762565441280,-5000.0,0.000179,2]
[393385435,1762565441292,-277.46764707,0.000179,2]
[393385436,1762565441310,-336.0,0.00017908,2]
[393385437,1762565441323,-336.0,0.00017918,2]
[393385438,1762565441335,-336.0,0.00017961,2]
[393385439,1762565441348,-500.0,0.00017973,2]
[393385440,1762565441360,-330.87391277,0.00017973,2]
[393385441,1762565441372,-500.0,0.00017973,2]
[393385442,1762565441384,-500.0,0.00017973,2]
[393385443,1762565441396,-216.20372532,0.00017973,2]
[393385444,1762565441408,-500.0,0.00017973,2]
[393385445,1762565441420,-426.53701258,0.00017973,2]
[393385446,1762565441432,-160.71773468,0.00017973,2]
[393385447,1762565441444,-159.99826602,0.00017973,2]
[393385448,1762565441457,-500.0,0.00017973,2]
[393385449,1762565441468,-500.0,0.00017973,2]
[393385450,1762565441480,-500.0,0.00017973,2]
[393385451,1762565441496,-500.0,0.00017973,2]
[393385452,1762565441509,-500.20326054,0.00017973,2]
[393385453,1762565441521,-503.38998104,0.00017973,2]
[393385454,1762565441533,-504.93289345,0.00017973,2]
[393385455,1762565441545,-500.50074512,0.00017973,2]
[393385456,1762565441558,-500.0,0.00017973,2]
[393385457,1762565441570,-500.0,0.00017973,2]
[393385458,1762565441582,-500.0,0.00017973,2]
[393385459,1762565441593,-500.0,0.00017973,2]
[393385460,1762565441605,-500.0,0.00017973,2]
[393385461,1762565441620,-167.36405018,0.00017973,2]
[393385462,1762565441632,-500.0,0.00017973,2]
[393385463,1762565441644,-500.0,0.00017973,2]
[393385464,1762565441656,-235.33606138,0.00017973,2]
[393385465,1762565441668,-501.54420709,0.00017973,2]
[393385466,1762565441683,-205.92818258,0.00017973,2]
[393385467,1762565441695,-151.0,0.00017973,2]
[393385468,1762565441708,-151.0,0.00017973,2]
[393385469,1762565441720,-151.0,0.00017973,2]
[393385470,1762565441732,-5151.45933094,0.00017973,2]
[393385471,1762565441744,-162.70010953,0.00017974,2]
[393385472,1762565441757,-336.0,0.00017985,2]
[393385473,1762565441770,-336.0,0.00017986,2]
[393385474,1762565441782,-300.0,0.00017999,2]
[393385475,1762565441796,-344.50578181,0.00017999,2]
[393385476,1762565441808,-328.15878362,0.00017999,2]
[393385477,1762565441821,-500.0,0.00017999,2]
[393385478,1762565441832,-625.14778037,0.00017999,2]
[393385479,1762565441844,-150.0,0.00017999,2]
[393385480,1762565441856,-182.20619158,0.00017999,2]
[393385481,1762565441871,-150.0,0.00017999,2]
[393385482,1762565441885,-3545963.12154976,0.00018,2]
[393385483,1762565441895,-164.337164,0.00018,2]
[393385484,1762565441906,-156.177876,0.00018,2]
[393385485,1762565441916,-151.0,0.00018,2]
[393385486,1762565441925,-151.0,0.00018,2]
[393385487,1762565441935,-151.0,0.00018,2]
[393385488,1762565441945,-153.180809,0.00018,2]
[393385489,1762565442293,-151.0,0.00018,2]
[393385490,1762565442329,-151.0,0.00018,2]
[393385491,1762565442352,-153.886192,0.00018,2]
[393385492,1762565442362,-151.0,0.00018,2]
[393385493,1762565442372,-200.0,0.00018,2]
[393385494,1762565442382,-150.0,0.00018,2]
[393385495,1762565442393,-150.0,0.00018,2]
[393385496,1762565442404,-150.0,0.00018,2]
[393385497,1762565442415,-2000.0,0.00018,2]
[393385498,1762565442425,-200.0,0.00018,2]
[393385499,1762565442435,-415.8,0.00018,2]
[393385500,1762565442445,-150.0,0.00018,2]
[393385501,1762565442454,-742927.14989096,0.00018,2]
[393385502,1762565442474,-842.22987682,0.00018,2]
[393385503,1762565442490,-515.25,0.00018,2]
[393385504,1762565442565,312.27131824,0.00039052,120]
[393385505,1762565442620,199.34707225,0.00039052,120]
[393385506,1762565442665,186.03147849,0.00039052,120]
[393385512,1762565443696,-278.40987028,0.000175,2]
[393385518,1762565445362,153.65014957,0.00039052,120]
[393385519,1762565446706,-927.28012972,0.000175,2]
[393385520,1762565446717,-150.0,0.000175,2]
[393385521,1762565446727,-279.38,0.000175,2]
[393385522,1762565446737,-291.47959919,0.00017667,2]
[393385523,1762565446747,-10201.41191576,0.00018,2]
[393385524,1762565446768,-2659.17178667,0.00018,2]
[393385525,1762565446781,-2508.74102032,0.00018,2]
[393385527,1762565449564,150.99806202,0.00039052,120]